bitfinex-derivatives/quotes_BTCF0:USTF0_20241226
["timestamp","ask_amount","ask_price","bid_price","bid_amount"]
[1735233934696,0.72976001,96059.0,96050.0,5.006]
[1735233934901,0.052099,96051.0,96050.0,5.006]
[1735233935500,0.052099,96051.0,96050.0,5.0]
[1735233936108,0.055099,96051.0,96050.0,5.0]
[1735233936305,0.10576876,96051.0,96050.0,5.0]
[1735233936607,0.10976876,96051.0,96050.0,5.001]
[1735233937711,0.10976876,96051.0,96050.0,4.96668691]
[1735233938413,0.11176876,96051.0,96050.0,4.96668691]
[1735233939104,0.10576876,96051.0,96050.0,4.96568691]
[1735233939309,0.11276876,96051.0,96050.0,4.96668691]
[1735233939510,0.06066976,96051.0,96050.0,4.96668691]
[1735233940197,0.05366976,96051.0,96050.0,4.96568691]
[1735233940406,0.06266976,96051.0,96050.0,4.96668691]
[1735233940602,0.064099,96051.0,96050.0,4.96668691]
[1735233941699,0.061099,96051.0,96050.0,4.96568691]
[1735233942000,0.062099,96051.0,96050.0,4.96668691]
[1735233942511,0.061099,96051.0,96050.0,4.94571691]
[1735233942806,0.061099,96051.0,96050.0,4.61245796]
[1735233942807,0.364099,96051.0,96050.0,4.61245796]
[1735233943010,0.362099,96051.0,96050.0,4.40796527]
[1735233943209,0.362099,96051.0,96050.0,4.34858349]
[1735233943406,0.36535732,96051.0,96050.0,4.34558349]
[1735233943607,0.06535732,96051.0,96050.0,4.31299995]
[1735233943809,0.36535732,96051.0,96050.0,4.30570076]
[1735233944015,0.36535732,96051.0,96050.0,4.30270076]
[1735233944314,0.36535732,96051.0,96050.0,4.22190003]
[1735233944614,0.41277732,96051.0,96050.0,4.19168018]
[1735233944814,0.41477732,96051.0,96050.0,4.17103472]
[1735233945017,0.41377732,96051.0,96050.0,4.17103472]
[1735233945208,0.40477732,96051.0,96050.0,3.92823852]
[1735233945409,0.41377732,96051.0,96050.0,3.91633852]
[1735233945612,0.41377732,96051.0,96050.0,3.85433852]
[1735233945815,0.40677732,96051.0,96050.0,3.84133852]
[1735233946012,0.11577732,96051.0,96050.0,3.84233852]
[1735233947814,0.10677732,96051.0,96050.0,3.84133852]
[1735233948015,0.11577732,96051.0,96050.0,3.84233852]
[1735233948521,0.10577732,96051.0,96050.0,3.84133852]
[1735233948727,0.11377732,96051.0,96050.0,3.84233852]
[1735233948910,0.11377732,96051.0,96050.0,3.82330952]
[1735233949111,0.055099,96051.0,96050.0,3.82230952]
[1735233949317,0.065099,96051.0,96050.0,3.82330952]
[1735233951215,0.056099,96051.0,96050.0,3.82230952]
[1735233951418,0.065099,96051.0,96050.0,3.82330952]
[1735233951722,0.11577308,96051.0,96050.0,3.82330952]
[1735233952413,0.10777308,96051.0,96050.0,3.82230952]
[1735233952613,0.11677308,96051.0,96050.0,3.82330952]
[1735233953426,0.06467408,96051.0,96050.0,3.82330952]
[1735233953624,0.21836657,96057.0,96050.0,3.82330952]
[1735233954013,0.21836657,96057.0,96050.0,3.82230952]
[1735233954318,0.009,96051.0,96050.0,3.82330952]
[1735233954523,0.21836657,96057.0,96050.0,3.82330952]
[1735233954726,0.003,96057.0,96050.0,3.87440952]
[1735233955016,0.004,96051.0,96050.0,3.82230952]
[1735233955216,0.056099,96051.0,96050.0,3.78984607]
[1735233955523,0.052099,96051.0,96050.0,3.75586024]
[1735233956424,0.054099,96051.0,96050.0,3.75586024]
[1735233957422,0.054099,96051.0,96050.0,3.4385106]
[1735233957607,0.054099,96051.0,96050.0,3.41654416]
[1735233957814,0.054099,96051.0,96050.0,3.26074116]
[1735233958114,0.054099,96051.0,96050.0,3.22304032]
[1735233958518,0.054099,96051.0,96050.0,2.72254302]
[1735233958723,0.054099,96051.0,96050.0,2.72354302]
[1735233958922,0.056099,96051.0,96050.0,2.72354302]
[1735233959810,0.057099,96051.0,96050.0,2.72354302]
[1735233960617,0.16121089,96051.0,96050.0,0.66609007]
[1735233960925,0.16121089,96051.0,96050.0,0.24309907]
[1735233961229,0.16121089,96051.0,96050.0,0.17265907]
[1735233961426,0.46121089,96051.0,96050.0,0.01178376]
[1735233962019,0.46121089,96051.0,96050.0,0.00330247]
[1735233962224,0.46121089,96051.0,96050.0,0.00048143]
[1735233962425,0.052119,96016.0,96004.0,0.052124]
[1735233962724,0.08510712,96014.0,96003.0,0.052125]
[1735233963627,0.08510712,96020.0,96007.0,0.052123]
[1735233963922,0.08510712,96020.0,96004.0,0.004]
[1735233964114,0.052121,96012.0,96004.0,0.004]
[1735233964314,0.052122,96009.0,96004.0,0.004]
[1735233965227,0.052122,96009.0,96003.0,0.012]
[1735233965428,0.052122,96009.0,96004.0,0.007]
[1735233965626,0.05212,96013.0,96004.0,0.007]
[1735233965831,0.052117,96019.0,96005.0,0.052124]
[1735233966126,0.15516333,96013.0,96004.0,0.011]
[1735233966428,0.186196,96022.0,96021.0,0.052116]
[1735233966725,0.08510712,96050.0,96011.0,0.052121]
[1735233966930,0.01569232,96050.0,96030.0,0.08510712]
[1735233967127,0.13774395,96056.0,96030.0,0.08510712]
[1735233967425,0.00156232,96084.0,96040.0,0.08510712]
[1735233967426,0.27907474,96063.0,96040.0,0.08510712]
[1735233967624,0.27907474,96063.0,96041.0,0.052104]
[1735233967832,0.27907474,96063.0,96050.0,0.08510712]
[1735233968025,0.31008305,96069.0,96048.0,0.052101]
[1735233968227,0.31008305,96069.0,96043.0,0.052104]
[1735233968528,0.31008305,96069.0,96042.0,0.3]
[1735233968529,0.052092,96065.0,96055.0,0.052097]
[1735233968823,0.001,96063.0,96058.0,0.052096]
[1735233969217,0.001,96063.0,96052.0,0.18600925]
[1735233969418,0.00156232,96084.0,96072.0,0.052088]
[1735233969419,0.01526792,96073.0,96072.0,0.052088]
[1735233969719,0.08510712,96110.0,96068.0,0.222]
[1735233969921,0.052071,96103.0,96087.0,0.05208]
[1735233970118,0.08510712,96100.0,96070.0,0.08510712]
[1735233970425,0.35645081,96108.0,96084.0,0.052081]
[1735233970615,0.01535946,96108.0,96087.0,0.18600925]
[1735233970819,0.052079,96089.0,96087.0,0.18600925]
[1735233971318,0.052075,96096.0,96087.0,0.18600925]
[1735233971529,0.052076,96095.0,96087.0,0.18600925]
[1735233971730,0.10087772,96100.0,96087.0,0.18600925]
[1735233972024,0.003,96089.0,96070.0,0.08510712]
[1735233972232,0.003,96089.0,96081.0,0.052083]
[1735233972525,0.052076,96095.0,96081.0,0.052083]
[1735233972721,0.055076,96095.0,96081.0,0.052083]
[1735233974131,0.053076,96095.0,96081.0,0.052083]
[1735233974820,0.055076,96095.0,96081.0,0.052083]
[1735233975124,0.003,96095.0,96081.0,0.052083]
[1735233975323,0.003,96095.0,96071.0,0.235]
[1735233975628,0.05208,96088.0,96071.0,0.235]
[1735233975925,0.05208,96088.0,96071.0,0.287088]
[1735233976125,0.05208,96088.0,96073.0,0.052087]
[1735233976332,0.05208,96088.0,96074.0,0.052087]
[1735233977732,0.05208,96088.0,96074.0,0.053087]
[1735233978122,0.06725661,96088.0,96074.0,0.053087]
[1735233978831,0.06725661,96088.0,96074.0,0.052087]
[1735233979133,0.06725661,96088.0,96074.0,0.053087]
[1735233979828,0.052082,96084.0,96074.0,0.001]
[1735233980436,0.12777286,96100.0,96060.0,0.12777286]
[1735233980624,0.27097331,96109.0,96074.0,0.001]
[1735233980931,0.052078,96091.0,96074.0,0.001]
[1735233981435,0.2424,96099.0,96074.0,0.001]
[1735233981619,0.052081,96086.0,96074.0,0.001]
[1735233981825,0.054082,96084.0,96067.0,0.052091]
[1735233982030,0.002,96084.0,96060.0,0.12777286]
[1735233982238,0.052087,96075.0,96061.0,0.052094]
[1735233984333,0.052087,96075.0,96063.0,0.052093]
[1735233985329,0.01518027,96084.0,96063.0,0.052093]
[1735233985533,0.052087,96074.0,96063.0,0.054093]
[1735233985727,0.052088,96073.0,96063.0,0.054093]
[1735233985928,0.052088,96072.0,96063.0,0.002]
[1735233986128,0.052088,96072.0,96056.0,0.2521]
[1735233986435,0.052089,96070.0,96058.0,0.052095]
[1735233986629,0.052089,96070.0,96042.0,0.2379]
[1735233986834,0.052089,96070.0,96059.0,0.052095]
[1735233987135,0.2467,96071.0,96060.0,0.052094]
[1735233987537,0.2467,96071.0,96063.0,0.052093]
[1735233987835,0.052082,96084.0,96072.0,0.052088]
[1735233988228,0.052082,96083.0,96069.0,0.05209]
[1735233988740,0.052084,96079.0,96058.0,0.052095]
[1735233989039,0.052087,96074.0,96063.0,0.002]
[1735233989428,0.052087,96074.0,96061.0,0.052094]
[1735233989743,0.052088,96072.0,96044.0,0.052103]
[1735233990038,0.052088,96072.0,96058.0,0.052096]
[1735233990238,0.052088,96072.0,96059.0,0.052095]
[1735233991033,0.2675515,96079.0,96059.0,0.052095]
[1735233991034,0.052089,96071.0,96059.0,0.052095]
[1735233991338,0.052091,96068.0,96063.0,0.002]
[1735233991533,0.052092,96064.0,96063.0,0.002]
[1735233993441,0.052094,96061.0,96047.0,0.052101]
[1735233994139,0.052095,96060.0,96047.0,0.052101]
[1735233994538,0.052095,96059.0,96047.0,0.052101]
[1735233995139,0.052096,96058.0,96047.0,0.052101]
[1735233995529,0.08523954,96060.0,96047.0,0.052101]
[1735233995744,0.052096,96057.0,96047.0,0.052101]
[1735233996038,0.052097,96056.0,96047.0,0.052101]
[1735233996441,0.052097,96055.0,96047.0,0.052101]
[1735233996637,0.001,96058.0,96047.0,0.052101]
[1735233996945,0.001,96058.0,96034.0,0.18600925]
[1735233997134,0.052099,96052.0,96044.0,0.052103]
[1735233997641,0.052099,96052.0,96045.0,0.052103]
[1735233997845,0.052099,96052.0,96040.0,0.18600925]
[1735233998037,0.052099,96052.0,96046.0,0.052102]
[1735233998842,0.001,96057.0,96046.0,0.052102]
[1735233999145,0.001,96052.0,96046.0,0.052102]
[1735234000351,0.052099,96051.0,96037.0,0.18600925]
[1735234000644,0.08523954,96050.0,96037.0,0.18600925]
[1735234000947,0.052102,96046.0,96037.0,0.23811625]
[1735234001647,0.2491,96049.0,96037.0,0.18600925]
[1735234001843,0.052096,96058.0,96037.0,0.18700925]
[1735234002043,0.052096,96058.0,96039.0,0.052106]
[1735234002248,0.052096,96058.0,96037.0,0.004]
[1735234002444,0.2521,96063.0,96040.0,0.08523954]
[1735234002647,0.08523954,96080.0,96062.0,0.052093]
[1735234002852,0.2529,96077.0,96074.0,0.052087]
[1735234003252,0.26665346,96075.0,96074.0,0.052087]
[1735234004146,0.01959191,96075.0,96074.0,0.052087]
[1735234004353,0.006,96075.0,96074.0,0.001]
[1735234004648,0.014,96075.0,96074.0,0.002]
[1735234005042,0.008,96075.0,96074.0,0.001]
[1735234005244,0.013,96075.0,96074.0,0.001]
[1735234005642,0.005,96075.0,96073.0,0.052087]
[1735234005946,0.013,96075.0,96074.0,0.001]
[1735234006741,0.008,96075.0,96074.0,0.001]
[1735234007147,0.27248997,96077.0,96065.0,0.052091]
[1735234007351,0.001,96075.0,96067.0,0.05209]
[1735234007845,0.005,96075.0,96067.0,0.05209]
[1735234008042,0.007,96075.0,96067.0,0.05209]
[1735234008447,0.002,96075.0,96067.0,0.05209]
[1735234009549,0.002,96075.0,96060.0,0.27124879]
[1735234009751,0.002,96075.0,96074.0,0.052087]
[1735234009954,0.001,96075.0,96061.0,0.052094]
[1735234010153,0.001,96075.0,96074.0,0.052087]
[1735234010655,0.0193632,96080.0,96079.0,0.052084]
[1735234010854,0.37701254,96100.0,96075.0,0.2349]
[1735234011051,0.37701254,96100.0,96072.0,0.18600925]
[1735234011052,0.052086,96076.0,96072.0,0.18600925]
[1735234011350,0.2378,96075.0,96072.0,0.18600925]
[1735234011550,0.052087,96073.0,96072.0,0.18600925]
[1735234012458,0.052091,96066.0,96051.0,0.23905864]
[1735234012648,0.052091,96066.0,96052.0,0.052099]
[1735234012848,0.052092,96065.0,96052.0,0.052099]
[1735234013365,0.052092,96065.0,96037.0,0.2349]
[1735234013653,0.2566,96072.0,96043.0,0.052103]
[1735234013654,0.08523954,96060.0,96043.0,0.052103]
[1735234013857,0.052096,96057.0,96037.0,0.2349]
[1735234014159,0.052097,96056.0,96045.0,0.052102]
[1735234014654,0.052097,96056.0,96052.0,0.002]
[1735234014855,0.052097,96055.0,96046.0,0.052102]
[1735234015058,0.052097,96055.0,96037.0,0.2429]
[1735234015357,0.001,96057.0,96047.0,0.052101]
[1735234015559,0.001,96056.0,96047.0,0.052101]
[1735234015745,0.052099,96051.0,96047.0,0.052101]
[1735234016150,0.001,96056.0,96037.0,0.2349]
[1735234016347,0.08523954,96050.0,96037.0,0.052107]
[1735234016548,0.052104,96044.0,96037.0,0.052107]
[1735234016747,0.052104,96044.0,96038.0,0.052106]
[1735234016949,0.052104,96044.0,96029.0,0.24850361]
[1735234017152,0.052104,96044.0,96037.0,0.003]
[1735234017354,0.052101,96048.0,96040.0,0.052105]
[1735234018758,0.238,96049.0,96040.0,0.052105]
[1735234019054,0.238,96049.0,96037.0,0.002]
[1735234019258,0.10947628,96060.0,96037.0,0.002]
[1735234019448,0.238,96065.0,96039.0,0.08523954]
[1735234019648,0.238,96065.0,96060.0,0.052094]
[1735234020866,0.052102,96046.0,96039.0,0.002]
[1735234021057,0.08523954,96054.0,96026.0,0.31065861]
[1735234021251,0.08523954,96041.0,96026.0,0.31065861]
[1735234021450,0.052107,96037.0,96036.0,0.24850361]
[1735234022860,0.052109,96034.0,96017.0,0.05367883]
[1735234023061,0.08523954,96027.0,96017.0,0.05367883]
[1735234023263,0.2346,96040.0,96036.0,0.001]
[1735234023664,0.2346,96040.0,96036.0,0.004]
[1735234024259,0.02443986,96041.0,96036.0,0.001]
[1735234024560,0.2518,96056.0,96037.0,0.2492]
[1735234024561,0.27658889,96056.0,96037.0,0.2492]
[1735234024755,0.27658889,96056.0,96046.0,0.052102]
[1735234025161,0.27658889,96056.0,96040.0,0.052105]
[1735234025361,0.08523954,96050.0,96037.0,0.2492]
[1735234025759,0.08523954,96050.0,96036.0,0.001]
[1735234025953,0.08523954,96050.0,96037.0,0.002]
[1735234026159,0.052102,96047.0,96037.0,0.002]
[1735234026457,0.001,96041.0,96037.0,0.002]
[1735234026663,0.001,96041.0,96035.0,0.052108]
[1735234026960,0.052102,96047.0,96035.0,0.052108]
[1735234027166,0.052103,96045.0,96037.0,0.001]
[1735234027461,0.12790993,96050.0,96037.0,0.001]
[1735234028066,0.27658889,96056.0,96042.0,0.052104]
[1735234028266,0.27658889,96056.0,96037.0,0.001]
[1735234028766,0.12790993,96050.0,96037.0,0.001]
[1735234029065,0.235,96049.0,96037.0,0.001]
[1735234029458,0.052105,96041.0,96037.0,0.001]
[1735234029767,0.2355,96040.0,96037.0,0.001]
[1735234030460,0.052106,96039.0,96037.0,0.001]
[1735234030868,0.052106,96039.0,96027.0,0.052112]
[1735234032766,0.052106,96039.0,96022.0,0.052115]
[1735234033168,0.052106,96039.0,96027.0,0.001]
[1735234033369,0.052106,96039.0,96027.0,0.003]
[1735234033771,0.052106,96039.0,96027.0,0.001]
[1735234033972,0.052106,96039.0,96025.0,0.052113]
[1735234034477,0.02434442,96041.0,96027.0,0.002]
[1735234034775,0.303897,96056.0,96031.0,0.05211]
[1735234034967,0.12790993,96050.0,96036.0,0.052107]
[1735234035168,0.052103,96044.0,96029.0,0.052111]
[1735234035373,0.18000993,96050.0,96035.0,0.052108]
[1735234035574,0.0521,96050.0,96036.0,0.052108]
[1735234036272,0.0521,96050.0,96037.0,0.052107]
[1735234036580,0.001,96039.0,96037.0,0.052107]
[1735234036967,0.0531,96050.0,96037.0,0.052107]
[1735234037775,0.052102,96047.0,96019.0,0.052117]
[1735234037974,0.001,96050.0,96018.0,0.2584]
[1735234038173,0.12890993,96050.0,96011.0,0.00068]
[1735234038380,0.052112,96028.0,96013.0,0.05212]
[1735234038573,0.052113,96026.0,96009.0,0.052122]
[1735234039374,0.052114,96025.0,96008.0,0.24850361]
[1735234039581,0.052114,96025.0,96018.0,0.006]
[1735234039771,0.052115,96022.0,96018.0,0.006]
[1735234039971,0.2511,96027.0,96018.0,0.006]
[1735234040177,0.052116,96020.0,96009.0,0.009]
[1735234040482,0.18002593,96020.0,96009.0,0.006]
[1735234040677,0.18002593,96020.0,96018.0,0.002]
[1735234040982,0.052116,96020.0,96018.0,0.002]
[1735234042384,0.052117,96019.0,96018.0,0.002]
[1735234042884,0.052117,96019.0,96009.0,0.009]
[1735234043186,0.052117,96019.0,96018.0,0.001]
[1735234043580,0.052117,96019.0,96018.0,0.003]
[1735234044084,0.052117,96019.0,96018.0,0.001]
[1735234045082,0.32794361,96027.0,96009.0,0.006]
[1735234045273,0.12790993,96019.0,96009.0,0.006]
[1735234045585,0.18002693,96019.0,96018.0,0.001]
[1735234045785,0.052117,96019.0,96018.0,0.001]
[1735234046279,0.052117,96019.0,96018.0,0.002]
[1735234046678,0.27583061,96027.0,96009.0,0.002]
[1735234046874,0.052119,96015.0,96009.0,0.002]
[1735234047079,0.052119,96015.0,96002.0,0.052126]
[1735234048280,0.08533846,96012.0,96002.0,0.052126]
[1735234050078,0.08633846,96012.0,96002.0,0.052126]
[1735234050383,0.08733846,96012.0,96002.0,0.052126]
[1735234051175,0.11107213,96012.0,96002.0,0.052126]
[1735234052088,0.07785467,96012.0,96002.0,0.052126]
[1735234052287,0.16319313,96012.0,96002.0,0.052126]
[1735234053193,0.16419313,96012.0,96002.0,0.052126]
[1735234053387,0.16219313,96012.0,96002.0,0.052126]
[1735234053587,0.16319313,96012.0,96002.0,0.052126]
[1735234054893,0.02573367,96012.0,96000.0,5.10068]
[1735234055085,0.02573367,96012.0,96011.0,0.052121]
[1735234056180,0.02473367,96012.0,96011.0,0.052121]
[1735234056492,0.02373367,96012.0,96011.0,0.052121]
[1735234056691,0.08533846,96021.0,96000.0,5.104]
[1735234056887,0.08533846,96021.0,96017.0,0.052117]
[1735234057193,0.08533846,96021.0,96018.0,0.052117]
[1735234057681,0.02469397,96021.0,96011.0,0.003]
[1735234057880,0.08533846,96021.0,96011.0,0.003]
[1735234058478,0.052118,96017.0,96011.0,0.003]
[1735234059087,0.052118,96017.0,96011.0,0.001]
[1735234059987,0.08933846,96021.0,96005.0,0.052124]
[1735234060187,0.052118,96016.0,96005.0,0.052124]
[1735234060487,0.05212,96014.0,96005.0,0.052124]
[1735234061089,0.052121,96011.0,96000.0,5.10272]
[1735234061290,0.08533846,96010.0,96001.0,0.052126]
[1735234061685,0.33373846,96010.0,96001.0,0.052126]
[1735234062697,0.33367462,96010.0,96002.0,0.052126]
[1735234063195,0.2504,96010.0,96003.0,0.052125]
[1735234063892,0.2514,96010.0,96003.0,0.052125]
[1735234064097,0.2494,96010.0,96000.0,5.10068]
[1735234064289,0.33573846,96010.0,96000.0,5.1]
[1735234064594,0.35762199,96010.0,96000.0,5.1]
[1735234064788,0.35762199,96010.0,96000.0,5.152127]
[1735234065498,0.27228353,96010.0,96000.0,5.152127]
[1735234066298,0.052123,96007.0,96000.0,5.1]
[1735234066684,0.35662199,96010.0,96000.0,5.1]
[1735234066991,0.35562199,96010.0,96000.0,5.1]
[1735234067595,0.001,96007.0,96000.0,5.1]
[1735234068203,0.356182,96010.0,96000.0,5.1]
[1735234068391,0.35662199,96010.0,96000.0,5.1]
[1735234069891,0.35562199,96010.0,96000.0,5.1]
[1735234070191,0.001,96007.0,96000.0,5.1]
[1735234070603,0.54309244,96010.0,96000.0,5.1]
[1735234070799,0.54253243,96010.0,96000.0,5.1]
[1735234071194,0.54153243,96010.0,96000.0,5.1]
[1735234071796,0.052126,96002.0,96000.0,5.1]
[1735234071997,0.2423,96001.0,96000.0,5.1]
[1735234072795,0.42821044,96001.0,96000.0,5.1]
[1735234073195,0.42821044,96001.0,96000.0,4.92687098]
[1735234073391,0.42821044,96001.0,96000.0,4.86570191]
[1735234073596,0.42821044,96001.0,96000.0,4.86054263]
[1735234073808,0.2423,96001.0,96000.0,4.85176868]
[1735234073995,0.2423,96001.0,96000.0,4.77479405]
[1735234074203,0.24755947,96001.0,96000.0,4.77479405]
[1735234074498,0.24755947,96001.0,96000.0,4.72801839]
[1735234074697,0.24755948,96001.0,96000.0,4.72801839]
[1735234075003,0.24755948,96001.0,96000.0,4.50123513]
[1735234075197,0.2433,96001.0,96000.0,4.45550673]
[1735234075403,0.2503,96001.0,96000.0,4.45372486]
[1735234075603,0.2503,96001.0,96000.0,4.42714392]
[1735234075801,0.2503,96001.0,96000.0,4.0101651]
[1735234076001,0.5503,96001.0,96000.0,3.53340563]
[1735234076207,0.5503,96001.0,96000.0,1.94418011]
[1735234076407,0.65446612,96001.0,96000.0,1.31910922]
[1735234076703,0.65446612,96001.0,96000.0,0.81114486]
[1735234076909,0.64946612,96001.0,96000.0,0.4603638]
[1735234077209,0.052137,95981.0,95971.0,0.24850361]
[1735234077506,0.66370688,96001.0,95971.0,0.24850361]
[1735234077507,0.08533846,95990.0,95971.0,0.24850361]
[1735234077802,0.25394,96001.0,95972.0,0.41672002]
[1735234078008,0.052128,95998.0,95973.0,0.2395]
[1735234078206,0.08533846,95983.0,95973.0,0.2395]
[1735234080417,0.08533846,95983.0,95973.0,0.2415]
[1735234080807,0.08533846,95983.0,95973.0,0.2505]
[1735234081207,0.10455246,95983.0,95973.0,0.2535]
[1735234081404,0.10455246,95983.0,95974.0,0.41672002]
[1735234083612,0.10455246,95983.0,95974.0,0.41872002]
[1735234084104,0.10455246,95983.0,95974.0,0.42372002]
[1735234084306,0.10455246,95983.0,95974.0,0.42172002]
[1735234084607,0.10455246,95983.0,95974.0,0.41872002]
[1735234084816,0.10455246,95983.0,95974.0,0.42272002]
[1735234085113,0.019214,95983.0,95975.0,0.2348]
[1735234085309,0.08533846,95990.0,95975.0,0.2348]
[1735234086910,0.052131,95993.0,95975.0,0.2348]
[1735234087109,0.08533846,95990.0,95975.0,0.2388]
[1735234087614,0.08533846,95990.0,95975.0,0.2348]
[1735234087816,0.08533846,95990.0,95975.0,0.2388]
[1735234088518,0.08533846,95990.0,95975.0,0.002]
[1735234088713,0.05214,95976.0,95975.0,0.006]
[1735234090104,0.05214,95976.0,95975.0,0.003]
[1735234090308,0.05214,95976.0,95974.0,0.41672002]
[1735234090309,0.05214,95976.0,95974.0,0.38258145]
[1735234090508,0.05214,95976.0,95974.0,0.36301145]
[1735234090509,0.2468,95975.0,95974.0,0.36301145]
[1735234091420,0.2468,95975.0,95974.0,0.33428724]
[1735234091718,0.2468,95975.0,95974.0,0.31528724]
[1735234091911,0.2468,95975.0,95974.0,0.31628724]
[1735234092312,0.35099434,95975.0,95974.0,0.30572624]
[1735234092614,0.2468,95975.0,95974.0,0.28616623]
[1735234092915,0.35099434,95975.0,95974.0,0.28416623]
[1735234093216,0.2468,95975.0,95974.0,0.28516623]
[1735234093515,0.2468,95975.0,95974.0,0.28416623]
[1735234094113,0.2468,95975.0,95974.0,0.25960902]
[1735234094114,0.2498,95975.0,95974.0,0.25960902]
[1735234094422,0.2508,95975.0,95974.0,0.25960902]
[1735234094723,0.2498,95975.0,95974.0,0.25960902]
[1735234095315,0.003,95975.0,95974.0,0.25960902]
[1735234097621,0.07145575,95976.0,95974.0,0.26460902]
[1735234098921,0.052136,95983.0,95974.0,0.26460902]
[1735234099618,0.2708795,95985.0,95974.0,0.26460902]
[1735234099812,0.00156362,96003.0,95974.0,0.26460902]
[1735234099813,0.2168337,95996.0,95974.0,0.26460902]
[1735234100007,0.2168337,95996.0,95986.0,0.052134]
[1735234100211,0.2168337,95996.0,95987.0,0.4926]
[1735234100417,0.2168337,95996.0,95987.0,0.75220902]
[1735234101322,0.001,95996.0,95987.0,0.75220902]
[1735234101817,0.003,95996.0,95987.0,0.75220902]
[1735234102019,0.001,95996.0,95991.0,0.052132]
[1735234102226,0.001,95996.0,95987.0,0.75288902]
[1735234102525,0.001,95996.0,95987.0,0.75220902]
[1735234103619,0.052127,96000.0,95987.0,0.75220902]
[1735234103825,0.002,95996.0,95987.0,0.75220902]
[1735234104328,0.052133,95989.0,95987.0,0.75220902]
[1735234104623,0.052133,95989.0,95987.0,0.50220902]
[1735234106619,0.055133,95989.0,95987.0,0.50220902]
[1735234107021,0.053133,95989.0,95987.0,0.25960902]
[1735234107221,0.07480514,95989.0,95987.0,0.25960902]
[1735234108310,0.07380514,95989.0,95987.0,0.25960902]
[1735234108509,0.07480514,95989.0,95987.0,0.25960902]
[1735234110027,0.02267214,95989.0,95987.0,0.25960902]
[1735234110727,0.00060001,96005.0,95979.0,0.08533846]
[1735234110913,0.05368624,96009.0,95991.0,0.052132]
[1735234111116,0.05368624,96009.0,95979.0,0.08533846]
[1735234111322,0.052123,96008.0,95992.0,0.052131]
[1735234111621,0.13746646,96000.0,95980.0,0.25960902]
[1735234111829,0.001,95989.0,95987.0,0.052134]
[1735234112121,0.07274443,96009.0,95991.0,0.052132]
[1735234112626,0.07274443,96009.0,95992.0,0.25960902]
[1735234113029,0.07274443,96009.0,95993.0,0.2501]
[1735234113424,0.001,96008.0,95993.0,0.2501]
[1735234114126,0.052124,96006.0,95993.0,0.2501]
[1735234115126,0.02462243,96009.0,95993.0,0.2511]
[1735234115321,0.02462243,96009.0,95994.0,0.25]
[1735234116020,0.02462243,96009.0,95995.0,0.2449]
[1735234116216,0.02062243,96009.0,95995.0,0.2449]
[1735234117227,0.05213,95995.0,95994.0,0.002]
[1735234117419,0.052125,96004.0,95995.0,0.002]
[1735234117623,0.052131,95993.0,95992.0,0.25960902]
[1735234118030,0.052131,95993.0,95992.0,0.25039308]
[1735234119434,0.052131,95993.0,95992.0,0.20894031]
[1735234119929,0.07115704,95993.0,95992.0,0.20894031]
[1735234121025,0.07115704,95993.0,95992.0,0.15796118]
[1735234122522,0.07215704,95993.0,95992.0,0.15796118]
[1735234123523,0.02002604,95993.0,95992.0,0.15796118]
[1735234123723,0.2168337,95997.0,95992.0,0.052131]
[1735234123929,0.35096001,96002.0,95993.0,0.63253514]
[1735234124231,0.01942629,96002.0,95993.0,0.63253514]
[1735234124433,0.2168337,96004.0,95993.0,0.63253514]
[1735234124829,0.2168337,96004.0,95993.0,0.39023514]
[1735234125136,0.05213,95994.0,95993.0,0.39023514]
[1735234125831,0.01900406,96004.0,95993.0,0.39023514]
[1735234126019,0.2168337,96016.0,95993.0,0.2523]
[1735234126020,0.052122,96010.0,95993.0,0.2523]
[1735234126226,0.13746046,96010.0,95993.0,0.2523]
[1735234126424,0.02071383,96009.0,95996.0,0.052129]
[1735234127328,0.02071383,96009.0,96000.0,0.052127]
[1735234128127,0.02071383,96009.0,95996.0,0.001]
[1735234128635,0.02071383,96009.0,95996.0,0.053129]
[1735234129331,0.02071383,96009.0,95996.0,0.052129]
[1735234129533,0.02071383,96009.0,95996.0,0.053129]
[1735234129834,0.052123,96008.0,95996.0,0.001]
[1735234131333,0.052123,96008.0,95996.0,0.002]
[1735234131534,0.052123,96007.0,95996.0,0.002]
[1735234131729,0.052128,95999.0,95996.0,0.002]
[1735234132929,0.02071383,96009.0,95997.0,0.11893108]
[1735234133330,0.18582671,96001.0,95997.0,0.11893108]
[1735234134639,0.02071383,96009.0,95997.0,0.11893108]
[1735234135341,0.02071383,96009.0,96000.0,0.052127]
[1735234135529,0.02071383,96009.0,96002.0,0.052126]
[1735234135730,0.02071383,96009.0,96006.0,0.052124]
[1735234136038,0.02071383,96009.0,96007.0,0.2488]
[1735234136438,0.02071383,96009.0,96008.0,0.11893108]
[1735234136741,0.02171383,96009.0,96008.0,0.11893108]
[1735234137136,0.02371383,96009.0,96008.0,0.11893108]
[1735234137337,0.07583583,96009.0,96008.0,0.11893108]
[1735234138134,0.07683583,96009.0,96008.0,0.11893108]
[1735234138731,0.07583583,96009.0,96008.0,0.11893108]
[1735234138931,0.07683583,96009.0,96008.0,0.11893108]
[1735234139142,0.07383583,96009.0,96008.0,0.11893108]
[1735234139327,0.02471383,96009.0,96008.0,0.11893108]
[1735234142446,0.02171383,96009.0,96008.0,0.11893108]
[1735234142647,0.02471383,96009.0,96008.0,0.11893108]
[1735234145047,0.02371383,96009.0,96008.0,0.11893108]
[1735234145237,0.02471383,96009.0,96008.0,0.11893108]
[1735234145639,0.02171383,96009.0,96008.0,0.11893108]
[1735234145837,0.02471383,96009.0,96008.0,0.11893108]
[1735234149956,0.07683583,96009.0,96008.0,0.11893108]
[1735234150155,0.07683583,96009.0,96008.0,0.11117437]
[1735234152450,0.07383583,96009.0,96008.0,0.11117437]
[1735234152651,0.07683583,96009.0,96008.0,0.11117437]